[Event "Titled Tuesday Blitz June 8 2021"]
[White "Sarana, Alexey"]
[Black "Tsyhanchuk_Stanislav"]
[WhiteFideId "24133795"]
[WhiteElo "2629"]
[BlackElo "2484"]
[Result "1-0"]
[Round "01"]
[TimeControl "180+1"]
[Date "2021.06.08"]
[WhiteClock "0:00:28"]
[BlackClock "0:00:15"]

1. e4 {[%clk 0:02:55]}  c5 {[%clk 0:03:00]} 2. Nf3 {[%clk 0:02:55]}  Nc6 {[%clk 0:03:01]} 3. d4 {[%clk 0:02:54]}  cxd4 {[%clk 0:03:02]} 4. Nxd4 {[%clk 0:02:55]}  Qb6 {[%clk 0:03:02]} 5. Nb3 {[%clk 0:02:53]}  Nf6 {[%clk 0:03:02]} 6. Nc3 {[%clk 0:02:51]}  e6 {[%clk 0:03:03]} 7. a3 {[%clk 0:02:49]}  a6 {[%clk 0:03:00]} 8. Be3 {[%clk 0:02:47]}  Qc7 {[%clk 0:03:00]} 9. Bd3 {[%clk 0:02:48]}  Be7 {[%clk 0:03:00]} 10. f4 {[%clk 0:02:47]}  d6 {[%clk 0:03:00]} 11. Qf3 {[%clk 0:02:47]}  O-O {[%clk 0:03:00]} 12. g4 {[%clk 0:02:45]}  Re8 {[%clk 0:03:00]} 13. g5 {[%clk 0:02:44]}  Nd7 {[%clk 0:03:01]} 14. h4 {[%clk 0:02:44]}  b5 {[%clk 0:03:01]} 15. h5 {[%clk 0:02:39]}  Nf8 {[%clk 0:02:49]} 16. g6 {[%clk 0:02:28]}  fxg6 {[%clk 0:02:50]} 17. hxg6 {[%clk 0:02:29]}  h6 {[%clk 0:02:07]} 18. e5 {[%clk 0:02:28]}  Bb7 {[%clk 0:02:04]} 19. Be4 {[%clk 0:02:22]}  b4 {[%clk 0:01:42]} 20. axb4 {[%clk 0:02:18]}  Nxb4 {[%clk 0:01:43]} 21. Bxb7 {[%clk 0:02:14]}  Nxc2+ {[%clk 0:01:34]} 22. Kf2 {[%clk 0:01:54]}  Rab8 {[%clk 0:01:28]} 23. Na5 {[%clk 0:01:31]}  Nxa1 {[%clk 0:01:27]} 24. Rxa1 {[%clk 0:01:32]}  d5 {[%clk 0:01:26]} 25. Nxd5 {[%clk 0:01:23]}  exd5 {[%clk 0:01:22]} 26. Qxd5+ {[%clk 0:01:24]}  Kh8 {[%clk 0:01:21]} 27. Rc1 {[%clk 0:01:23]}  Qd8 {[%clk 0:01:17]} 28. b3 {[%clk 0:00:42]}  Nxg6 {[%clk 0:00:59]} 29. Qe4 {[%clk 0:00:42]}  Qxa5 {[%clk 0:00:40]} 30. Qxg6 {[%clk 0:00:42]}  Bh4+ {[%clk 0:00:25]} 31. Kf3 {[%clk 0:00:38]}  Rxe5 {[%clk 0:00:16]} 32. fxe5 {[%clk 0:00:37]}  Rf8+ {[%clk 0:00:17]} 33. Kg4 {[%clk 0:00:29]}  Qb4+ {[%clk 0:00:15]} 34. Be4 {[%clk 0:00:28]} 1-0


[Site "https://www.chess.com"]

[Event "Titled Tuesday Blitz June 8 2021"]
[White "Saravana, Krishnan P."]
[Black "Balakrishnan, Praveen"]
[WhiteFideId "5018382"]
[BlackFideId "2064871"]
[WhiteElo "2430"]
[BlackElo "2805"]
[Result "1-0"]
[Round "01"]
[TimeControl "180+1"]
[Date "2021.06.08"]
[WhiteClock "0:00:10"]
[BlackClock "0:00:11"]

1. e4 {[%clk 0:03:00]}  c5 {[%clk 0:02:54]} 2. Nf3 {[%clk 0:02:50]}  Nc6 {[%clk 0:02:48]} 3. Bb5 {[%clk 0:02:50]}  g6 {[%clk 0:02:46]} 4. c3 {[%clk 0:02:49]}  Bg7 {[%clk 0:02:43]} 5. d4 {[%clk 0:02:48]}  cxd4 {[%clk 0:02:43]} 6. cxd4 {[%clk 0:02:47]}  Qb6 {[%clk 0:02:43]} 7. Nc3 {[%clk 0:02:42]}  Nxd4 {[%clk 0:02:42]} 8. Nd5 {[%clk 0:02:38]}  Nxf3+ {[%clk 0:02:42]} 9. Qxf3 {[%clk 0:02:36]}  Qd6 {[%clk 0:02:37]} 10. Bf4 {[%clk 0:02:10]}  Be5 {[%clk 0:02:36]} 11. Bxe5 {[%clk 0:01:42]}  Qxe5 {[%clk 0:02:36]} 12. Rc1 {[%clk 0:01:42]}  Kf8 {[%clk 0:02:28]} 13. O-O {[%clk 0:01:34]}  Nf6 {[%clk 0:02:26]} 14. Nc7 {[%clk 0:01:33]}  Rb8 {[%clk 0:02:23]} 15. Rfe1 {[%clk 0:01:26]}  Kg7 {[%clk 0:02:16]} 16. Qe3 {[%clk 0:01:20]}  d6 {[%clk 0:02:04]} 17. Qxa7 {[%clk 0:01:06]}  Bd7 {[%clk 0:02:04]} 18. Bxd7 {[%clk 0:00:46]}  Nxd7 {[%clk 0:02:05]} 19. b4 {[%clk 0:00:42]}  Rhc8 {[%clk 0:01:56]} 20. Qe3 {[%clk 0:00:42]}  e6 {[%clk 0:01:42]} 21. f4 {[%clk 0:00:41]}  Qh5 {[%clk 0:01:42]} 22. Rc3 {[%clk 0:00:31]}  Nf6 {[%clk 0:01:28]} 23. Rec1 {[%clk 0:00:31]}  Rd8 {[%clk 0:01:21]} 24. h3 {[%clk 0:00:31]}  e5 {[%clk 0:00:55]} 25. fxe5 {[%clk 0:00:14]}  dxe5 {[%clk 0:00:54]} 26. Rf1 {[%clk 0:00:13]}  Rd6 {[%clk 0:00:33]} 27. Nb5 {[%clk 0:00:13]}  Ra6 {[%clk 0:00:28]} 28. Qf2 {[%clk 0:00:11]}  Rf8 {[%clk 0:00:21]} 29. Rc7 {[%clk 0:00:11]}  g5 {[%clk 0:00:19]} 30. Qf5 {[%clk 0:00:10]}  Re6 {[%clk 0:00:18]} 31. Qxe6 {[%clk 0:00:10]}  Nxe4 {[%clk 0:00:12]} 32. Qxe5+ {[%clk 0:00:10]}  Kg8 {[%clk 0:00:12]} 33. Qxe4 {[%clk 0:00:10]}  Qh6 {[%clk 0:00:12]} 34. Rcxf7 {[%clk 0:00:10]}  Rxf7 {[%clk 0:00:11]} 35. Qe8+ {[%clk 0:00:10]}  Rf8 {[%clk 0:00:09]} 36. Rxf8+ {[%clk 0:00:09]}  Qxf8 {[%clk 0:00:10]} 37. Qxf8+ {[%clk 0:00:09]}  Kxf8 {[%clk 0:00:11]} 38. Nd6 {[%clk 0:00:10]}  b6 {[%clk 0:00:11]} 39. Nc8 {[%clk 0:00:10]}  b5 {[%clk 0:00:11]} 40. Na7 {[%clk 0:00:10]} 1-0


[Site "https://www.chess.com"]

[Event "Titled Tuesday Blitz June 8 2021"]
[White "Sawlin, Leonid"]
[Black "Zhigalko, Sergei"]
[WhiteFideId "4689542"]
[BlackFideId "13502956"]
[WhiteElo "2412"]
[BlackElo "2662"]
[Result "1-0"]
[Round "01"]
[TimeControl "180+1"]
[Date "2021.06.08"]
[WhiteClock "0:00:36"]
[BlackClock "0:00:02"]

1. e4 {[%clk 0:02:52]}  c5 {[%clk 0:03:00]} 2. Nf3 {[%clk 0:02:51]}  Nc6 {[%clk 0:03:00]} 3. Bb5 {[%clk 0:02:50]}  Nf6 {[%clk 0:03:00]} 4. Nc3 {[%clk 0:02:46]}  Qc7 {[%clk 0:03:00]} 5. O-O {[%clk 0:02:45]}  Nd4 {[%clk 0:03:00]} 6. Bc4 {[%clk 0:02:39]}  e6 {[%clk 0:03:00]} 7. Re1 {[%clk 0:02:35]}  a6 {[%clk 0:02:53]} 8. a4 {[%clk 0:02:34]}  d6 {[%clk 0:02:53]} 9. d3 {[%clk 0:02:30]}  Be7 {[%clk 0:02:52]} 10. Bf4 {[%clk 0:02:25]}  Nxf3+ {[%clk 0:02:38]} 11. Qxf3 {[%clk 0:02:24]}  Nd7 {[%clk 0:02:39]} 12. Qg3 {[%clk 0:02:21]}  O-O {[%clk 0:02:37]} 13. a5 {[%clk 0:02:12]}  Ne5 {[%clk 0:01:30]} 14. Bb3 {[%clk 0:02:12]}  Bd7 {[%clk 0:01:19]} 15. Bh6 {[%clk 0:02:10]}  Bf6 {[%clk 0:01:14]} 16. f4 {[%clk 0:02:10]}  Nc6 {[%clk 0:01:05]} 17. e5 {[%clk 0:02:04]}  dxe5 {[%clk 0:00:50]} 18. Ne4 {[%clk 0:02:04]}  Qd8 {[%clk 0:00:38]} 19. Nxc5 {[%clk 0:01:42]}  exf4 {[%clk 0:00:34]} 20. Bxf4 {[%clk 0:01:43]}  Bxb2 {[%clk 0:00:31]} 21. Nxb7 {[%clk 0:01:19]}  Qf6 {[%clk 0:00:22]} 22. Rab1 {[%clk 0:01:17]}  Bc3 {[%clk 0:00:19]} 23. Rf1 {[%clk 0:01:15]}  Nxa5 {[%clk 0:00:14]} 24. Nxa5 {[%clk 0:01:08]}  Bxa5 {[%clk 0:00:14]} 25. Bd6 {[%clk 0:01:06]}  Qd4+ {[%clk 0:00:04]} 26. Kh1 {[%clk 0:01:06]}  Bc3 {[%clk 0:00:04]} 27. Bxf8 {[%clk 0:01:05]}  Rxf8 {[%clk 0:00:05]} 28. Rf4 {[%clk 0:01:01]}  Qd6 {[%clk 0:00:04]} 29. Rxf7 {[%clk 0:00:41]}  Qxg3 {[%clk 0:00:04]} 30. Rxf8+ {[%clk 0:00:41]}  Kxf8 {[%clk 0:00:05]} 31. hxg3 {[%clk 0:00:41]}  a5 {[%clk 0:00:06]} 32. Rf1+ {[%clk 0:00:39]}  Ke7 {[%clk 0:00:05]} 33. Rf4 {[%clk 0:00:40]}  Kd6 {[%clk 0:00:05]} 34. Rc4 {[%clk 0:00:40]}  Bb4 {[%clk 0:00:04]} 35. Rd4+ {[%clk 0:00:40]}  Kc7 {[%clk 0:00:04]} 36. c3 {[%clk 0:00:39]}  Bc5 {[%clk 0:00:04]} 37. Rc4 {[%clk 0:00:39]}  Kb6 {[%clk 0:00:05]} 38. Ba4 {[%clk 0:00:36]}  Bc8 {[%clk 0:00:03]} 39. d4 {[%clk 0:00:36]}  Bd6 {[%clk 0:00:01]} 40. Rxc8 {[%clk 0:00:35]}  Bxg3 {[%clk 0:00:01]} 41. Rc6+ {[%clk 0:00:35]}  Kb7 {[%clk 0:00:01]} 42. Kg1 {[%clk 0:00:34]}  h6 {[%clk 0:00:01]} 43. Kf1 {[%clk 0:00:35]}  Bf4 {[%clk 0:00:02]} 44. Ke2 {[%clk 0:00:35]}  Ka7 {[%clk 0:00:02]} 45. Kd3 {[%clk 0:00:36]} 1-0


[Site "https://www.chess.com"]

[Event "Titled Tuesday Blitz June 8 2021"]
[White "Shuvalov, Evgenij"]
[Black "Donchenko, Alexander"]
[WhiteFideId "4187237"]
[BlackFideId "24603295"]
[WhiteElo "2425"]
[BlackElo "2790"]
[Result "0-1"]
[Round "01"]
[TimeControl "180+1"]
[Date "2021.06.08"]
[WhiteClock "0:00:31"]
[BlackClock "0:01:05"]

1. Nf3 {[%clk 0:03:00]}  Nf6 {[%clk 0:03:00]} 2. c4 {[%clk 0:03:00]}  b6 {[%clk 0:03:00]} 3. g3 {[%clk 0:02:59]}  Bb7 {[%clk 0:03:00]} 4. Bg2 {[%clk 0:03:00]}  g6 {[%clk 0:03:00]} 5. O-O {[%clk 0:03:00]}  Bg7 {[%clk 0:03:01]} 6. Nc3 {[%clk 0:03:00]}  O-O {[%clk 0:03:01]} 7. Re1 {[%clk 0:03:00]}  Ne4 {[%clk 0:03:01]} 8. Nxe4 {[%clk 0:03:00]}  Bxe4 {[%clk 0:03:02]} 9. d3 {[%clk 0:03:00]}  Bb7 {[%clk 0:03:02]} 10. e4 {[%clk 0:03:01]}  c5 {[%clk 0:03:02]} 11. d4 {[%clk 0:03:00]}  cxd4 {[%clk 0:03:03]} 12. Nxd4 {[%clk 0:03:01]}  Nc6 {[%clk 0:03:03]} 13. Be3 {[%clk 0:03:00]}  Rc8 {[%clk 0:03:03]} 14. Rc1 {[%clk 0:02:59]}  Qc7 {[%clk 0:03:02]} 15. b3 {[%clk 0:02:58]}  Rfd8 {[%clk 0:03:00]} 16. f4 {[%clk 0:02:52]}  d6 {[%clk 0:02:57]} 17. Nb5 {[%clk 0:02:47]}  Qb8 {[%clk 0:02:54]} 18. Nc3 {[%clk 0:02:47]}  e6 {[%clk 0:02:52]} 19. Qd2 {[%clk 0:02:43]}  Ba8 {[%clk 0:02:43]} 20. Red1 {[%clk 0:02:35]}  a6 {[%clk 0:02:43]} 21. Qf2 {[%clk 0:02:32]}  b5 {[%clk 0:02:42]} 22. Bb6 {[%clk 0:02:26]}  Rd7 {[%clk 0:02:25]} 23. cxb5 {[%clk 0:02:25]}  axb5 {[%clk 0:02:24]} 24. Nxb5 {[%clk 0:02:14]}  d5 {[%clk 0:02:18]} 25. e5 {[%clk 0:02:06]}  Bf8 {[%clk 0:02:08]} 26. a4 {[%clk 0:01:58]}  Nb4 {[%clk 0:02:05]} 27. Bc5 {[%clk 0:01:33]}  Bc6 {[%clk 0:01:35]} 28. Bxf8 {[%clk 0:01:28]}  Rxf8 {[%clk 0:01:34]} 29. Nd4 {[%clk 0:01:00]}  Rc8 {[%clk 0:01:30]} 30. Bf1 {[%clk 0:00:54]}  Rdc7 {[%clk 0:01:26]} 31. Qd2 {[%clk 0:00:49]}  Qb6 {[%clk 0:01:21]} 32. Kg2 {[%clk 0:00:48]}  Bb7 {[%clk 0:01:16]} 33. Nb5 {[%clk 0:00:42]}  Rc2 {[%clk 0:01:15]} 34. Rxc2 {[%clk 0:00:34]}  Rxc2 {[%clk 0:01:16]} 35. Kh3 {[%clk 0:00:34]}  Rxd2 {[%clk 0:01:15]} 36. Rxd2 {[%clk 0:00:35]}  Ba6 {[%clk 0:01:13]} 37. Rd4 {[%clk 0:00:32]}  Bxb5 {[%clk 0:01:05]} 38. Rxb4 {[%clk 0:00:31]}  Bxf1+ {[%clk 0:01:05]} 39. Kh4 {[%clk 0:00:31]}  Qxb4 {[%clk 0:01:05]} 0-1


[Site "https://www.chess.com"]

[Event "Titled Tuesday Blitz June 8 2021"]
[White "Sorokin, Aleksey"]
[Black "Milosevic, Milos"]
[WhiteFideId "24176460"]
[BlackFideId "964875"]
[WhiteElo "2845"]
[BlackElo "2452"]
[Result "0-1"]
[Round "01"]
[TimeControl "180+1"]
[Date "2021.06.08"]
[WhiteClock "0:01:11"]
[BlackClock "0:00:11"]

1. d4 {[%clk 0:03:00]}  Nf6 {[%clk 0:02:59]} 2. c4 {[%clk 0:03:01]}  g6 {[%clk 0:02:59]} 3. Nc3 {[%clk 0:03:00]}  Bg7 {[%clk 0:03:00]} 4. e4 {[%clk 0:03:00]}  d6 {[%clk 0:03:01]} 5. Nf3 {[%clk 0:03:00]}  O-O {[%clk 0:03:01]} 6. Be2 {[%clk 0:03:01]}  e5 {[%clk 0:03:01]} 7. O-O {[%clk 0:03:01]}  Nc6 {[%clk 0:03:01]} 8. d5 {[%clk 0:03:01]}  Ne7 {[%clk 0:03:02]} 9. b4 {[%clk 0:03:01]}  Ne8 {[%clk 0:03:02]} 10. a4 {[%clk 0:02:57]}  a5 {[%clk 0:02:58]} 11. bxa5 {[%clk 0:02:57]}  Rxa5 {[%clk 0:02:55]} 12. Nd2 {[%clk 0:02:57]}  f5 {[%clk 0:02:52]} 13. Nb3 {[%clk 0:02:53]}  Ra8 {[%clk 0:02:50]} 14. c5 {[%clk 0:02:50]}  dxc5 {[%clk 0:02:17]} 15. Nxc5 {[%clk 0:02:47]}  Nd6 {[%clk 0:02:18]} 16. Ne6 {[%clk 0:02:24]}  Bxe6 {[%clk 0:02:17]} 17. dxe6 {[%clk 0:02:25]}  fxe4 {[%clk 0:01:45]} 18. Ba3 {[%clk 0:02:17]}  Nef5 {[%clk 0:01:34]} 19. Nxe4 {[%clk 0:02:12]}  Nxe4 {[%clk 0:01:30]} 20. e7 {[%clk 0:02:11]}  Nxe7 {[%clk 0:01:29]} 21. Qxd8 {[%clk 0:02:10]}  Rfxd8 {[%clk 0:01:29]} 22. Bxe7 {[%clk 0:02:10]}  Rd7 {[%clk 0:01:08]} 23. Ba3 {[%clk 0:02:09]}  Nc3 {[%clk 0:01:00]} 24. Bc4+ {[%clk 0:02:09]}  Kh8 {[%clk 0:01:00]} 25. Bb2 {[%clk 0:02:06]}  Nxa4 {[%clk 0:00:31]} 26. Bb5 {[%clk 0:01:56]}  Rd2 {[%clk 0:00:31]} 27. Bc1 {[%clk 0:01:46]}  Rd4 {[%clk 0:00:31]} 28. Be3 {[%clk 0:01:46]}  Rb4 {[%clk 0:00:30]} 29. Bd7 {[%clk 0:01:46]}  e4 {[%clk 0:00:21]} 30. Ra2 {[%clk 0:01:40]}  c6 {[%clk 0:00:19]} 31. g4 {[%clk 0:01:37]}  Rd8 {[%clk 0:00:18]} 32. Be6 {[%clk 0:01:36]}  Nc3 {[%clk 0:00:19]} 33. Ra7 {[%clk 0:01:34]}  Nd5 {[%clk 0:00:19]} 34. Bg5 {[%clk 0:01:32]}  Rf8 {[%clk 0:00:13]} 35. Bxd5 {[%clk 0:01:30]}  cxd5 {[%clk 0:00:14]} 36. Be7 {[%clk 0:01:30]}  Rb2 {[%clk 0:00:10]} 37. Bxf8 {[%clk 0:01:30]}  Bxf8 {[%clk 0:00:11]} 38. Ra8 {[%clk 0:01:25]}  Kg7 {[%clk 0:00:11]} 39. Rd8 {[%clk 0:01:26]}  Rd2 {[%clk 0:00:10]} 40. Rd7+ {[%clk 0:01:26]}  Kh6 {[%clk 0:00:10]} 41. h4 {[%clk 0:01:24]}  Bc5 {[%clk 0:00:08]} 42. Kg2 {[%clk 0:01:24]}  b6 {[%clk 0:00:06]} 43. Kg3 {[%clk 0:01:23]}  g5 {[%clk 0:00:05]} 44. hxg5+ {[%clk 0:01:20]}  Kxg5 {[%clk 0:00:05]} 45. f4+ {[%clk 0:01:21]}  Kg6 {[%clk 0:00:05]} 46. f5+ {[%clk 0:01:15]}  Kg5 {[%clk 0:00:04]} 47. Rg7+ {[%clk 0:01:14]}  Kf6 {[%clk 0:00:04]} 48. Rxh7 {[%clk 0:01:14]}  Bd6+ {[%clk 0:00:05]} 49. Rf4 {[%clk 0:01:11]}  Rd3+ {[%clk 0:00:04]} 50. Kh4 {[%clk 0:01:11]}  Bxf4 {[%clk 0:00:05]} 51. g5+ {[%clk 0:01:10]}  Bxg5+ {[%clk 0:00:06]} 52. Kg4 {[%clk 0:01:10]}  Be3 {[%clk 0:00:05]} 53. Rd7 {[%clk 0:01:08]}  d4 {[%clk 0:00:05]} 54. Rd6+ {[%clk 0:01:08]}  Kf7 {[%clk 0:00:06]} 55. f6 {[%clk 0:01:08]}  Rd2 {[%clk 0:00:06]} 56. Kf5 {[%clk 0:01:08]}  Rf2+ {[%clk 0:00:06]} 57. Kxe4 {[%clk 0:01:08]}  Rxf6 {[%clk 0:00:06]} 58. Rd7+ {[%clk 0:01:08]}  Ke6 {[%clk 0:00:06]} 59. Rh7 {[%clk 0:01:08]}  Rf7 {[%clk 0:00:06]} 60. Rh4 {[%clk 0:01:08]}  Ke7 {[%clk 0:00:07]} 61. Rh5 {[%clk 0:01:08]}  Rf6 {[%clk 0:00:07]} 62. Rh7+ {[%clk 0:01:08]}  Kd6 {[%clk 0:00:07]} 63. Rh8 {[%clk 0:01:08]}  Kc5 {[%clk 0:00:08]} 64. Rc8+ {[%clk 0:01:08]}  Kb4 {[%clk 0:00:08]} 65. Kd3 {[%clk 0:01:09]}  b5 {[%clk 0:00:09]} 66. Rb8 {[%clk 0:01:09]}  Ra6 {[%clk 0:00:09]} 67. Rc8 {[%clk 0:01:09]}  Ka4 {[%clk 0:00:09]} 68. Kc2 {[%clk 0:01:09]}  b4 {[%clk 0:00:10]} 69. Kd3 {[%clk 0:01:09]}  Ka3 {[%clk 0:00:10]} 70. Rb8 {[%clk 0:01:09]}  b3 {[%clk 0:00:11]} 71. Kc4 {[%clk 0:01:10]}  b2 {[%clk 0:00:10]} 72. Kd3 {[%clk 0:01:11]}  Ka2 {[%clk 0:00:11]} 73. Kc2 {[%clk 0:01:11]}  Rc6+ {[%clk 0:00:11]} 74. Kd3 {[%clk 0:01:11]}  b1=Q+ {[%clk 0:00:11]} 0-1


[Site "https://www.chess.com"]

[Event "Titled Tuesday Blitz June 8 2021"]
[White "Svidler, Peter"]
[Black "Swicarz, Maciej"]
[WhiteFideId "4102142"]
[BlackFideId "1113585"]
[WhiteElo "2754"]
[BlackElo "2199"]
[Result "1-0"]
[Round "01"]
[TimeControl "180+1"]
[Date "2021.06.08"]
[WhiteClock "0:00:31"]
[BlackClock "0:00:37"]

1. e4 {[%clk 0:03:00]}  c6 {[%clk 0:02:58]} 2. Nf3 {[%clk 0:02:53]}  d5 {[%clk 0:02:58]} 3. Nc3 {[%clk 0:02:53]}  Nf6 {[%clk 0:02:56]} 4. e5 {[%clk 0:02:53]}  Ne4 {[%clk 0:02:56]} 5. Ne2 {[%clk 0:02:51]}  Bg4 {[%clk 0:02:54]} 6. d3 {[%clk 0:02:31]}  Nc5 {[%clk 0:02:53]} 7. Ng3 {[%clk 0:02:26]}  e6 {[%clk 0:02:49]} 8. d4 {[%clk 0:02:20]}  Ncd7 {[%clk 0:02:46]} 9. h3 {[%clk 0:02:11]}  Bxf3 {[%clk 0:02:45]} 10. Qxf3 {[%clk 0:02:12]}  c5 {[%clk 0:02:45]} 11. Bd3 {[%clk 0:01:49]}  cxd4 {[%clk 0:02:40]} 12. Qe2 {[%clk 0:01:49]}  Nc6 {[%clk 0:02:38]} 13. f4 {[%clk 0:01:48]}  g6 {[%clk 0:02:24]} 14. O-O {[%clk 0:01:47]}  h5 {[%clk 0:02:24]} 15. f5 {[%clk 0:01:42]}  gxf5 {[%clk 0:02:20]} 16. Nxf5 {[%clk 0:01:42]}  Ndxe5 {[%clk 0:01:45]} 17. Bf4 {[%clk 0:01:42]}  Nxd3 {[%clk 0:01:44]} 18. cxd3 {[%clk 0:01:41]}  Qd7 {[%clk 0:01:37]} 19. Rac1 {[%clk 0:01:40]}  O-O-O {[%clk 0:01:35]} 20. Nxd4 {[%clk 0:01:35]}  Bd6 {[%clk 0:01:31]} 21. Bxd6 {[%clk 0:01:34]}  Qxd6 {[%clk 0:01:30]} 22. Rxf7 {[%clk 0:01:34]}  Kb8 {[%clk 0:01:24]} 23. Nxc6+ {[%clk 0:01:15]}  bxc6 {[%clk 0:01:25]} 24. Qe3 {[%clk 0:01:15]}  d4 {[%clk 0:01:11]} 25. Qe4 {[%clk 0:01:13]}  Rc8 {[%clk 0:01:11]} 26. b4 {[%clk 0:01:02]}  Qxb4 {[%clk 0:00:58]} 27. Rxc6 {[%clk 0:00:39]}  Rxc6 {[%clk 0:00:53]} 28. Qxc6 {[%clk 0:00:38]}  Qe1+ {[%clk 0:00:51]} 29. Rf1 {[%clk 0:00:37]}  Qe3+ {[%clk 0:00:51]} 30. Kh1 {[%clk 0:00:38]}  Qxd3 {[%clk 0:00:48]} 31. Rf3 {[%clk 0:00:34]}  Qb1+ {[%clk 0:00:38]} 32. Kh2 {[%clk 0:00:34]}  Qxa2 {[%clk 0:00:37]} 33. Rf7 {[%clk 0:00:31]} 1-0


[Site "https://www.chess.com"]

[Event "Titled Tuesday Blitz June 8 2021"]
[White "Torkkola, Henri"]
[Black "Bryakin, Mikhail"]
[WhiteFideId "507660"]
[BlackFideId "4165314"]
[WhiteElo "2137"]
[BlackElo "2409"]
[Result "0-1"]
[Round "01"]
[TimeControl "180+1"]
[Date "2021.06.08"]
[WhiteClock "0:00:04"]
[BlackClock "0:00:34"]

1. d4 {[%clk 0:02:59]}  d6 {[%clk 0:02:59]} 2. Bf4 {[%clk 0:02:58]}  g6 {[%clk 0:02:58]} 3. Nf3 {[%clk 0:02:58]}  Bg7 {[%clk 0:02:59]} 4. e3 {[%clk 0:02:58]}  Nf6 {[%clk 0:02:59]} 5. h3 {[%clk 0:02:58]}  O-O {[%clk 0:02:59]} 6. Be2 {[%clk 0:02:59]}  b6 {[%clk 0:02:59]} 7. O-O {[%clk 0:02:59]}  Bb7 {[%clk 0:02:59]} 8. a4 {[%clk 0:02:58]}  a6 {[%clk 0:02:59]} 9. a5 {[%clk 0:02:58]}  b5 {[%clk 0:03:00]} 10. c4 {[%clk 0:02:59]}  c6 {[%clk 0:02:52]} 11. b4 {[%clk 0:02:54]}  bxc4 {[%clk 0:02:48]} 12. Bxc4 {[%clk 0:02:53]}  Nd5 {[%clk 0:02:45]} 13. Bxd5 {[%clk 0:02:48]}  cxd5 {[%clk 0:02:46]} 14. Nc3 {[%clk 0:02:48]}  e6 {[%clk 0:02:43]} 15. Qb3 {[%clk 0:02:36]}  Nc6 {[%clk 0:02:38]} 16. Na4 {[%clk 0:02:33]}  Qe7 {[%clk 0:02:31]} 17. Nb6 {[%clk 0:02:32]}  Rad8 {[%clk 0:02:31]} 18. Rac1 {[%clk 0:02:30]}  Na7 {[%clk 0:02:20]} 19. Rc2 {[%clk 0:02:15]}  Nb5 {[%clk 0:02:18]} 20. Rfc1 {[%clk 0:02:14]}  h6 {[%clk 0:02:04]} 21. Nd2 {[%clk 0:02:08]}  g5 {[%clk 0:02:02]} 22. Bg3 {[%clk 0:02:07]}  f5 {[%clk 0:02:01]} 23. Nb1 {[%clk 0:02:02]}  f4 {[%clk 0:02:00]} 24. Bh2 {[%clk 0:01:58]}  f3 {[%clk 0:02:00]} 25. Na3 {[%clk 0:01:47]}  Nxa3 {[%clk 0:01:50]} 26. Qxa3 {[%clk 0:01:48]}  Qf6 {[%clk 0:01:49]} 27. Bg3 {[%clk 0:01:47]}  fxg2 {[%clk 0:01:44]} 28. Rc7 {[%clk 0:01:45]}  Rf7 {[%clk 0:01:40]} 29. R1c3 {[%clk 0:01:37]}  h5 {[%clk 0:01:37]} 30. Qc1 {[%clk 0:01:32]}  h4 {[%clk 0:01:30]} 31. Rxf7 {[%clk 0:01:32]}  Qxf7 {[%clk 0:01:20]} 32. Rc7 {[%clk 0:01:27]}  Qf3 {[%clk 0:01:16]} 33. Bh2 {[%clk 0:00:59]}  Rf8 {[%clk 0:01:15]} 34. Qc2 {[%clk 0:00:56]}  Ba8 {[%clk 0:00:59]} 35. Bxd6 {[%clk 0:00:32]}  Qxh3 {[%clk 0:00:58]} 36. Bh2 {[%clk 0:00:25]}  Qf3 {[%clk 0:00:55]} 37. Nxa8 {[%clk 0:00:17]}  g4 {[%clk 0:00:52]} 38. Rxg7+ {[%clk 0:00:13]}  Kxg7 {[%clk 0:00:45]} 39. Be5+ {[%clk 0:00:13]}  Kh6 {[%clk 0:00:46]} 40. Nc7 {[%clk 0:00:09]}  g3 {[%clk 0:00:43]} 41. Nxe6 {[%clk 0:00:04]}  gxf2+ {[%clk 0:00:34]} 0-1


[Site "https://www.chess.com"]